bitfinex/quotes_BTCUSD_20230107
["timestamp","ask_amount","ask_price","bid_price","bid_amount"]
[1673071633126,0.064,16940.0,16939.0,3.13880259]
[1673071633873,0.064,16940.0,16939.0,3.76323622]
[1673071634632,0.064,16940.0,16939.0,4.21929206]
[1673071636172,0.064,16940.0,16939.0,3.76323622]
[1673071636428,0.064,16940.0,16939.0,4.21929206]
[1673071638931,0.064,16940.0,16939.0,3.76323622]
[1673071639192,0.064,16940.0,16939.0,4.21929206]
[1673071640852,0.064,16940.0,16939.0,4.43176124]
[1673071641364,0.064,16940.0,16939.0,3.79855685]
[1673071641617,0.064,16940.0,16939.0,4.43176124]
[1673071641866,0.064,16940.0,16939.0,3.79855371]
[1673071642373,0.064,16940.0,16939.0,4.60882111]
[1673071642657,0.064,16940.0,16939.0,4.43176124]
[1673071642888,0.064,16940.0,16939.0,4.60883007]
[1673071643404,0.064,16940.0,16939.0,4.25461851]
[1673071643698,0.064,16940.0,16939.0,4.60883007]
[1673071644728,0.064,16940.0,16939.0,4.43176124]
[1673071646037,0.064,16940.0,16939.0,4.60884142]
[1673071646287,0.064,16940.0,16939.0,4.60884143]
[1673071646575,0.064,16940.0,16939.0,4.60884145]
[1673071646812,0.064,16940.0,16939.0,4.43176124]
[1673071648336,0.064,16940.0,16939.0,4.48793097]
[1673071648589,0.064,16940.0,16939.0,4.96413025]
[1673071648846,0.064,16940.0,16939.0,4.69886531]
[1673071649364,0.04955528,16941.0,16939.0,4.96353363]
[1673071649620,0.005,16940.0,16939.0,3.47817268]
[1673071649856,0.005,16940.0,16939.0,4.97608431]
[1673071650411,0.005,16940.0,16939.0,4.53330622]
[1673071650656,0.005,16940.0,16939.0,4.71042833]
[1673071650923,0.005,16940.0,16939.0,4.9761063]
[1673071651176,0.04120528,16941.0,16939.0,5.59122526]
[1673071651424,0.04120528,16941.0,16940.0,1.58337324]
[1673071651676,0.04120528,16941.0,16940.0,2.75194367]
[1673071651902,0.89533595,16942.0,16940.0,2.75194367]
[1673071652208,0.89533595,16942.0,16941.0,0.606259]
[1673071652453,0.89533595,16942.0,16941.0,2.086825]
[1673071652717,0.44233595,16942.0,16941.0,2.57073084]
[1673071653994,0.45433595,16942.0,16941.0,2.58473084]
[1673071656822,0.63122823,16942.0,16941.0,1.97847184]
[1673071657088,0.63122823,16942.0,16941.0,2.58473084]
[1673071657360,0.63122823,16942.0,16941.0,2.28473084]
[1673071661417,0.63122823,16942.0,16941.0,2.58473084]
[1673071662482,1.07356001,16942.0,16941.0,2.28473084]
[1673071662989,0.80821322,16942.0,16941.0,1.67847184]
[1673071663804,1.0529689,16942.0,16941.0,1.67847184]
[1673071664032,0.80821322,16942.0,16941.0,1.67847184]
[1673071664537,1.05296648,16942.0,16941.0,1.67847184]
[1673071664785,0.80821322,16942.0,16941.0,1.67847184]
[1673071666557,1.0529146,16942.0,16941.0,1.67847184]
[1673071666830,1.05291575,16942.0,16941.0,1.67847184]
[1673071667080,0.69903431,16942.0,16941.0,1.67847184]
[1673071674043,1.0528989,16942.0,16941.0,1.67847184]
[1673071674553,1.0528989,16942.0,16941.0,1.67833019]
[1673071685427,0.80819637,16942.0,16941.0,1.67833019]
[1673071685680,0.6312428,16942.0,16941.0,1.67833019]
[1673071698310,1.07357458,16942.0,16941.0,1.67833019]
[1673071699054,0.80819637,16942.0,16941.0,1.67833019]
[1673071699819,1.07368802,16942.0,16941.0,1.67833019]
[1673071700343,0.63135624,16942.0,16941.0,1.67833019]
[1673071700602,1.05407771,16942.0,16941.0,1.67833019]
[1673071701849,1.51013355,16942.0,16941.0,1.67833019]
[1673071703851,1.05407771,16942.0,16941.0,1.67833019]
[1673071704872,0.70021312,16942.0,16941.0,1.67833019]
[1673071706544,1.15626896,16942.0,16941.0,1.67833019]
[1673071706798,1.15626896,16942.0,16941.0,1.19442435]
[1673071707804,1.15626896,16942.0,16941.0,1.19435909]
[1673071708032,1.6564179,16942.0,16941.0,1.19435909]
[1673071708843,1.21393718,16942.0,16941.0,1.19435909]
[1673071709600,1.65636937,16942.0,16941.0,1.19435909]
[1673071710077,1.21393718,16942.0,16941.0,1.19435909]
[1673071711651,1.25498504,16942.0,16941.0,1.19435909]
[1673071713051,0.75498504,16942.0,16941.0,1.19435909]
[1673071713571,1.19733264,16942.0,16941.0,1.19435909]
[1673071713818,0.75498504,16942.0,16941.0,1.19435909]
[1673071714855,1.19733482,16942.0,16941.0,1.19435909]
[1673071716076,0.75498504,16942.0,16941.0,1.19435909]
[1673071718524,1.19728097,16942.0,16941.0,1.19435909]
[1673071725026,0.74122513,16942.0,16941.0,1.19435909]
[1673071725734,1.19728097,16942.0,16941.0,1.19435909]
[1673071726698,0.74122513,16942.0,16941.0,1.19435909]
[1673071727724,1.19728097,16942.0,16941.0,1.19435909]
[1673071730989,0.74122513,16942.0,16941.0,1.19435909]
[1673071732172,1.19728097,16942.0,16941.0,1.19435909]
[1673071739460,0.74122513,16942.0,16941.0,1.19435909]
[1673071742162,0.2989292,16942.0,16941.0,1.19435909]
[1673071742668,0.74142142,16942.0,16941.0,1.19435909]
[1673071743177,1.18391833,16942.0,16941.0,1.19435909]
[1673071744407,1.63997417,16942.0,16941.0,1.19435909]
[1673071744691,1.63997417,16942.0,16941.0,1.19429113]
[1673071744937,2.13997417,16942.0,16941.0,1.19429113]
[1673071747771,2.16944187,16942.0,16941.0,1.19429113]
[1673071748016,2.13997417,16942.0,16941.0,1.19429113]
[1673071748301,1.63997417,16942.0,16941.0,1.19429113]
[1673071748543,1.18391833,16942.0,16941.0,1.19429113]
[1673071749665,1.18391833,16942.0,16941.0,1.75903151]
[1673071749938,1.62644545,16942.0,16941.0,1.75903151]
[1673071750977,1.65527156,16942.0,16941.0,1.75903151]
[1673071752247,1.62644545,16942.0,16941.0,1.75903151]
[1673071752508,1.62644545,16942.0,16941.0,2.36529051]
[1673071753573,1.62644545,16942.0,16941.0,1.75903151]
[1673071753826,1.98044667,16942.0,16941.0,2.36529051]
[1673071754383,1.98044667,16942.0,16941.0,1.75903151]
[1673071754892,2.3344323,16942.0,16941.0,1.75903151]
[1673071756670,2.68841013,16942.0,16941.0,1.75903151]
[1673071756943,2.3344323,16942.0,16941.0,1.75903151]
[1673071757675,1.89190518,16942.0,16941.0,1.75903151]
[1673071758645,2.24588916,16942.0,16941.0,1.75903151]
[1673071762309,2.59986967,16942.0,16941.0,1.75903151]
[1673071762554,2.95385076,16942.0,16941.0,1.75903151]
[1673071768348,3.30782414,16942.0,16941.0,1.75903151]
[1673071771030,1.18391833,16942.0,16941.0,1.75903151]
[1673071771280,0.2989292,16942.0,16941.0,1.75903151]
[1673071771536,0.2989292,16942.0,16941.0,2.36529051]
[1673071771537,0.05304786,16942.0,16941.0,2.36529051]
[1673071771776,0.2989292,16942.0,16941.0,2.36529051]
[1673071771996,0.2989292,16942.0,16941.0,1.75903151]
[1673071781629,0.6528791,16942.0,16941.0,1.75903151]
[1673071781869,0.2989292,16942.0,16941.0,1.75903151]
[1673071787048,1.30325266,16942.0,16941.0,1.19422738]
[1673071787567,1.30325266,16942.0,16941.0,0.60394438]
[1673071788092,1.83096994,16942.0,16941.0,0.60394438]
[1673071789630,1.30325266,16942.0,16941.0,0.60394438]
[1673071792604,1.83096994,16942.0,16941.0,0.60394438]
[1673071793512,1.30325266,16942.0,16941.0,0.60394438]
[1673071798346,1.30325266,16942.0,16941.0,0.014]
[1673071801537,1.30325266,16942.0,16941.0,0.005697]
[1673071803317,0.84719682,16942.0,16941.0,0.005697]
[1673071803565,1.30325266,16942.0,16941.0,0.005697]
[1673071813575,1.83096994,16942.0,16941.0,0.005697]
[1673071813807,1.30325266,16942.0,16941.0,0.005697]
[1673071814035,1.30313675,16942.0,16941.0,0.005697]
[1673071814772,1.33285365,16942.0,16941.0,0.005697]
[1673071815523,1.30313675,16942.0,16941.0,0.005697]
[1673071816473,0.84708091,16942.0,16941.0,0.005697]
[1673071816955,1.30313675,16942.0,16941.0,0.005697]
[1673071817470,1.30313675,16942.0,16941.0,0.59598]
[1673071820806,1.33257573,16942.0,16941.0,0.59598]
[1673071821779,1.86029301,16942.0,16941.0,0.59598]
[1673071822757,1.83085403,16942.0,16941.0,0.59598]
[1673071826350,1.83085403,16942.0,16941.0,0.005697]
[1673071836606,1.83085403,16942.0,16941.0,0.00561862]
[1673071840526,1.30313675,16942.0,16941.0,0.00561862]
[1673071841289,1.30313675,16942.0,16941.0,0.00379823]
[1673071845946,1.83372778,16942.0,16941.0,0.00379823]
[1673071846230,1.83372778,16942.0,16941.0,0.00367062]
[1673071846493,1.83373451,16942.0,16941.0,0.00367062]
[1673071857894,2.14396204,16942.0,16941.0,0.00367062]
[1673071858846,1.83373451,16942.0,16941.0,0.00367062]
[1673071867665,1.28546689,16942.0,16941.0,0.00367062]
[1673071867912,0.82941105,16942.0,16941.0,0.00367062]
[1673071868209,0.82941105,16942.0,16941.0,0.00355655]
[1673071870892,0.29881329,16942.0,16941.0,0.00355655]
[1673071871640,0.29881329,16942.0,16941.0,0.55112647]
[1673071873386,0.7410579,16942.0,16941.0,0.55112647]
[1673071873648,0.29881329,16942.0,16941.0,0.55112647]
[1673071881576,0.74093709,16942.0,16941.0,0.55112647]
[1673071884453,0.75486913,16942.0,16941.0,0.55112647]
[1673071886851,0.75486913,16942.0,16941.0,0.00355655]
[1673071888381,0.29881329,16942.0,16941.0,0.00355655]
[1673071888981,0.75486913,16942.0,16941.0,0.00355655]
[1673071889225,1.28546689,16942.0,16941.0,0.00355655]
[1673071889716,0.5,16941.0,16940.0,1.22296215]
[1673071890009,1.64408797,16941.0,16940.0,1.22296215]
[1673071890236,1.18803213,16941.0,16940.0,1.22296215]
[1673071890738,0.73645319,16941.0,16940.0,1.22296215]
[1673071890991,0.75245319,16941.0,16940.0,1.22396215]
[1673071891837,0.73645319,16941.0,16940.0,1.22296215]
[1673071892094,0.73645319,16941.0,16940.0,1.22396215]
[1673071892095,0.74845319,16941.0,16940.0,1.22396215]
[1673071892342,0.73645319,16941.0,16940.0,1.22296215]
[1673071892626,0.74845319,16941.0,16940.0,1.22396215]
[1673071904234,0.3063024,16941.0,16940.0,1.22396215]
[1673071912863,0.8063024,16941.0,16940.0,1.22386911]
[1673071913625,0.3063024,16941.0,16940.0,1.22386911]
[1673071916537,0.8063024,16941.0,16940.0,1.21993296]
[1673071917326,0.3063024,16941.0,16940.0,1.21993296]
[1673071921180,0.74866779,16941.0,16940.0,1.21993296]
[1673071921441,0.3063024,16941.0,16940.0,1.21993296]
[1673071929477,0.8063024,16941.0,16940.0,1.11993296]
[1673071931078,0.3063024,16941.0,16940.0,1.11993296]
[1673071932098,0.83690016,16941.0,16940.0,1.11993296]
[1673071932684,0.3063024,16941.0,16940.0,1.11993296]
[1673071942882,0.83690016,16941.0,16940.0,1.11993296]
[1673071943521,0.3063024,16941.0,16940.0,1.11993296]
[1673071953555,0.8063024,16941.0,16940.0,1.11984175]
[1673071954792,0.3063024,16941.0,16940.0,1.11984175]
[1673071965141,0.74878687,16941.0,16940.0,1.11984175]
[1673071965643,0.3063024,16941.0,16940.0,1.11984175]
[1673071976396,0.76106176,16941.0,16940.0,0.48209849]
[1673071978337,1.26106176,16941.0,16940.0,0.48201565]
[1673071980345,0.3063024,16941.0,16940.0,0.48201565]
[1673071980850,0.76106176,16941.0,16940.0,0.48201565]
[1673071981105,0.3063024,16941.0,16940.0,0.48201565]
[1673071982603,0.8063024,16941.0,16940.0,0.47701565]
[1673071983647,1.26106176,16941.0,16940.0,0.47701565]
[1673071985065,0.3063024,16941.0,16940.0,0.47701565]
[1673071991120,0.76106176,16941.0,16940.0,0.47701565]
[1673071993839,1.29165952,16941.0,16940.0,0.47701565]
[1673071994334,0.76106176,16941.0,16940.0,0.47701565]
[1673071994595,1.29165952,16941.0,16940.0,0.47701565]
[1673071995370,0.76106176,16941.0,16940.0,0.47701565]
[1673071996372,1.29165952,16941.0,16940.0,0.47701565]
[1673071996627,0.76106176,16941.0,16940.0,0.47701565]
[1673071997641,0.3063024,16941.0,16940.0,0.47701565]
[1673072005202,0.3063024,16941.0,16940.0,0.47692508]
[1673072005455,0.8063024,16941.0,16940.0,0.47692508]
[1673072005711,0.3063024,16941.0,16940.0,0.47692508]
[1673072010186,0.30621123,16941.0,16940.0,0.47692508]
[1673072016667,0.76097059,16941.0,16940.0,0.47692508]
[1673072016930,1.91332298,16941.0,16940.0,0.47692508]
[1673072017188,1.45856362,16941.0,16940.0,0.47692508]
[1673072017731,1.45856362,16941.0,16940.0,0.001]
[1673072018730,1.91332298,16941.0,16940.0,0.001]
[1673072022854,1.38272522,16941.0,16940.0,0.001]
[1673072023127,1.91332298,16941.0,16940.0,0.001]
[1673072023386,1.38272522,16941.0,16940.0,0.001]
[1673072023635,1.91332298,16941.0,16940.0,0.001]
[1673072024740,1.91332298,16941.0,16940.0,0.0008581]
[1673072025016,1.91332298,16941.0,16940.0,0.00078009]
[1673072031561,1.16214698,16941.0,16940.0,0.00078009]
[1673072036029,1.20853032,16941.0,16940.0,0.00078009]
[1673072037067,1.20853032,16941.0,16939.0,1.20116936]
[1673072037318,1.21353032,16941.0,16940.0,0.009]
[1673072037569,1.20853032,16941.0,16939.0,0.61081836]
[1673072037838,1.21353032,16941.0,16940.0,0.009]
[1673072038084,1.20853032,16941.0,16939.0,0.61081836]
[1673072038336,1.21353032,16941.0,16939.0,0.61981836]
[1673072040147,1.21353032,16941.0,16939.0,0.009]
[1673072040406,0.95874412,16940.0,16939.0,0.009]
[1673072041405,1.45874412,16940.0,16938.0,1.10387496]
[1673072041651,0.79587338,16939.0,16938.0,1.10387496]
[1673072043568,0.81187338,16939.0,16938.0,1.11087496]
[1673072046692,1.00230878,16939.0,16938.0,1.11087496]
[1673072050563,1.00230878,16939.0,16938.0,0.52051396]
[1673072050829,1.00230878,16939.0,16938.0,1.11087496]
[1673072052355,0.81187338,16939.0,16938.0,1.11087496]
[1673072052573,0.63494361,16939.0,16938.0,1.70126296]
[1673072054295,0.81187338,16939.0,16938.0,1.70126296]
[1673072054543,0.6349661,16939.0,16938.0,1.70126296]
[1673072055334,0.81187338,16939.0,16938.0,1.70126296]
[1673072056095,1.00150532,16939.0,16938.0,1.65126296]
[1673072059102,0.81187338,16939.0,16938.0,1.65126296]
[1673072059920,1.00206087,16939.0,16938.0,1.65126296]
[1673072061917,0.81187338,16939.0,16938.0,1.65126296]
[1673072062175,1.00206696,16939.0,16938.0,1.65126296]
[1673072062481,0.81187338,16939.0,16938.0,1.65126296]
[1673072062666,1.00206658,16939.0,16938.0,1.65126296]
[1673072077984,1.07731757,16939.0,16938.0,2.25752196]
[1673072078852,0.81187338,16939.0,16938.0,1.65126296]
[1673072079380,0.6351452,16939.0,16938.0,1.65126296]
[1673072096626,0.6351452,16939.0,16938.0,2.25752196]
[1673072100405,1.02494498,16939.0,16938.0,2.25752196]
[1673072100652,1.02494498,16939.0,16938.0,1.65126296]
[1673072101400,1.09084243,16939.0,16938.0,1.65126296]
[1673072102157,0.64869295,16939.0,16938.0,1.65126296]
[1673072102403,0.82546505,16939.0,16938.0,1.65126296]
[1673072103409,0.64870741,16939.0,16938.0,1.65126296]
[1673072103654,0.82546505,16939.0,16938.0,1.65126296]
[1673072104389,0.9958737,16939.0,16938.0,1.65126296]
[1673072104889,0.82546505,16939.0,16938.0,1.65126296]
[1673072105394,0.99587747,16939.0,16938.0,1.65126296]
[1673072107375,0.65044497,16939.0,16938.0,1.65126296]
[1673072109840,1.10400107,16939.0,16938.0,1.65126296]
[1673072111224,0.65044497,16939.0,16938.0,1.65126296]
[1673072113405,1.10400107,16939.0,16938.0,1.65126296]
[1673072116279,0.65044497,16939.0,16938.0,1.65126296]
[1673072117066,1.10400107,16939.0,16938.0,1.06087496]
[1673072122222,0.66184919,16939.0,16938.0,1.06087496]
[1673072125190,1.330548,16939.0,16938.0,0.007]
[1673072125458,1.86114576,16939.0,16938.0,0.007]
[1673072126319,1.86114576,16939.0,16938.0,0.00688023]
[1673072131681,1.330548,16939.0,16938.0,0.00688023]
[1673072131924,1.86114576,16939.0,16938.0,0.00688023]
[1673072132184,1.330548,16939.0,16938.0,0.00688023]
[1673072132438,1.86114576,16939.0,16938.0,0.00688023]
[1673072133914,1.330548,16939.0,16938.0,0.00688023]
[1673072138881,1.86114576,16939.0,16938.0,0.00688023]
[1673072146427,2.03404576,16939.0,16938.0,0.00688023]
[1673072150746,2.53404576,16939.0,16938.0,0.00681046]
[1673072151696,2.53404576,16939.0,16938.0,0.00673335]
[1673072157201,2.53404576,16939.0,16938.0,0.00606002]
[1673072159793,2.33201892,16939.0,16938.0,0.00606002]
[1673072160029,2.5340411,16939.0,16938.0,0.00606002]
[1673072162773,2.3313795,16939.0,16938.0,0.00606002]
[1673072162999,2.003448,16939.0,16938.0,0.00606002]
[1673072168863,2.5343908,16939.0,16938.0,0.00606002]
[1673072169110,2.3313795,16939.0,16938.0,0.00606002]
[1673072169362,2.003448,16939.0,16938.0,0.00606002]
[1673072171152,2.53438025,16939.0,16938.0,0.00606002]
[1673072171404,2.3313795,16939.0,16938.0,0.00606002]
[1673072171658,2.003448,16939.0,16938.0,0.00606002]
[1673072174708,1.830548,16939.0,16938.0,0.00606002]
[1673072174964,2.3614718,16939.0,16938.0,0.00606002]
[1673072175216,2.3614709,16939.0,16938.0,0.00606002]
[1673072175956,2.36146477,16939.0,16938.0,0.00606002]
[1673072176209,1.830548,16939.0,16938.0,0.00606002]
[1673072179311,1.830548,16939.0,16938.0,0.00594927]
[1673072179789,2.36146546,16939.0,16938.0,0.00594927]
[1673072180506,2.36145963,16939.0,16938.0,0.00594927]
[1673072183730,2.36145963,16939.0,16938.0,0.60263236]
[1673072190331,2.36145963,16939.0,16938.0,0.60246474]
[1673072193712,2.36145963,16939.0,16938.0,0.00578165]
[1673072201747,2.36136225,16939.0,16938.0,0.00578165]
[1673072205472,0.5,16938.0,16937.0,0.67672268]
[1673072205712,1.07168622,16938.0,16937.0,0.67672268]
[1673072205980,0.67041242,16938.0,16937.0,0.67672268]
[1673072206973,0.68541242,16938.0,16937.0,0.67772268]
[1673072207543,0.68541242,16938.0,16937.0,0.67672268]
[1673072207800,0.67041242,16938.0,16937.0,0.67672268]
[1673072208046,0.17041242,16938.0,16937.0,0.67672268]
[1673072208553,0.18641242,16938.0,16937.0,0.67772268]
[1673072208798,0.17041242,16938.0,16937.0,0.67672268]
[1673072209049,0.18241242,16938.0,16937.0,0.67772268]
[1673072220878,0.63596852,16938.0,16937.0,0.67772268]
[1673072222253,0.18241242,16938.0,16937.0,0.67772268]
[1673072223190,0.63596852,16938.0,16937.0,0.67772268]
[1673072223718,0.18241242,16938.0,16937.0,0.67772268]
[1673072224940,0.6358745,16938.0,16937.0,0.67772268]
[1673072225593,1.1358745,16938.0,16937.0,0.6776153]
[1673072229540,0.6358745,16938.0,16937.0,0.6776153]
[1673072230053,0.63596852,16938.0,16937.0,0.6776153]
[1673072230329,0.18241242,16938.0,16937.0,0.6776153]
[1673072230816,0.63596852,16938.0,16937.0,0.6776153]
[1673072235368,1.16688015,16938.0,16937.0,0.001]
[1673072237141,1.66688015,16938.0,16937.0,0.001]
[1673072241956,1.71189641,16938.0,16937.0,0.001]
[1673072243196,1.71189641,16938.0,16937.0,0.63479675]
[1673072243436,1.18098478,16938.0,16937.0,0.63479675]
[1673072243684,1.71189641,16938.0,16937.0,0.63479675]
[1673072246678,1.21189641,16938.0,16937.0,0.63479675]
[1673072246922,0.68098478,16938.0,16937.0,0.63479675]
[1673072247917,1.21189641,16938.0,16937.0,0.63479675]
[1673072248170,1.21189641,16938.0,16937.0,0.001]
[1673072248419,1.21189641,16938.0,16937.0,0.00093898]
[1673072248420,1.71189641,16938.0,16937.0,0.00093898]
[1673072251942,1.69989641,16938.0,16936.0,0.59438655]
[1673072252207,0.67041242,16937.0,16936.0,0.59438655]
[1673072252467,1.12396852,16937.0,16936.0,0.59438655]
[1673072252713,0.67041242,16937.0,16936.0,0.59438655]
[1673072252991,1.11264908,16937.0,16936.0,0.59438655]
[1673072253727,1.11264908,16937.0,16936.0,1.18484455]
[1673072253967,1.12464908,16937.0,16936.0,1.18584455]
[1673072255459,0.62464908,16937.0,16936.0,1.18584455]
[1673072260001,0.18241242,16937.0,16936.0,1.18584455]
[1673072260247,0.18241242,16937.0,16936.0,1.17584455]
[1673072260492,1.13596852,16937.0,16936.0,1.17584455]
[1673072267519,0.62469838,16937.0,16936.0,1.17584455]
[1673072269994,1.07825448,16937.0,16936.0,1.17584455]
[1673072270251,0.62469838,16937.0,16936.0,1.17584455]
[1673072274756,0.18241242,16937.0,16936.0,1.17584455]
[1673072276539,0.63596852,16937.0,16936.0,1.17584455]
[1673072277035,0.18241242,16937.0,16936.0,1.17584455]
[1673072278043,0.63596852,16937.0,16936.0,1.17584455]
[1673072278294,0.18241242,16937.0,16936.0,1.17584455]
[1673072278800,0.62481025,16937.0,16936.0,1.17584455]
[1673072280811,1.07836635,16937.0,16936.0,1.17576139]
[1673072281284,0.63596852,16937.0,16936.0,1.17576139]
[1673072281776,0.18241242,16937.0,16936.0,1.17576139]
[1673072281985,0.62480595,16937.0,16936.0,1.17576139]
[1673072282562,1.07836205,16937.0,16936.0,1.17576139]
[1673072283068,0.63596852,16937.0,16936.0,1.17576139]
[1673072285734,0.18241242,16937.0,16936.0,1.17576139]
[1673072286780,0.63596852,16937.0,16936.0,1.17576139]
[1673072287297,0.18241242,16937.0,16936.0,1.17576139]
[1673072287803,0.63501728,16937.0,16936.0,1.17576139]
[1673072288641,0.18146118,16937.0,16936.0,1.17576139]
[1673072291070,0.63501728,16937.0,16936.0,1.17576139]
[1673072291337,0.63501728,16937.0,16936.0,0.58530339]
[1673072295199,1.16592891,16937.0,16936.0,0.58530339]
[1673072296689,1.16592891,16937.0,16936.0,0.01436134]
[1673072296951,1.66592891,16937.0,16936.0,0.01436134]
[1673072311332,1.66592891,16937.0,16936.0,0.01424226]
[1673072324808,1.66592891,16937.0,16936.0,0.00924226]
[1673072327172,1.66592891,16937.0,16936.0,0.00916328]
[1673072331635,1.66531761,16937.0,16936.0,0.00916328]
[1673072332423,1.66531761,16937.0,16936.0,0.0059298]
[1673072334969,1.6652661,16937.0,16936.0,0.0059298]
[1673072347441,1.1652661,16937.0,16936.0,0.6240453]
[1673072348248,1.1652661,16937.0,16935.0,0.02310523]
[1673072348498,0.66884988,16936.0,16935.0,0.02310523]
[1673072349227,0.66884988,16936.0,16935.0,0.68310179]
[1673072349228,0.16884988,16936.0,16935.0,0.68310179]
[1673072349720,0.18484988,16936.0,16935.0,0.69310179]
[1673072350706,0.62727208,16936.0,16935.0,0.69310179]
[1673072350967,0.18484988,16936.0,16935.0,0.69310179]
[1673072353047,0.62725483,16936.0,16935.0,0.69310179]
[1673072353288,0.98119346,16936.0,16935.0,1.28359479]
[1673072354048,0.98119346,16936.0,16935.0,1.88985379]
[1673072354554,0.98119346,16936.0,16935.0,1.28359479]
[1673072355832,0.62725483,16936.0,16935.0,1.28359479]
[1673072356107,1.08081093,16936.0,16935.0,1.28359479]
[1673072356633,0.63840598,16936.0,16935.0,1.28359479]
[1673072356940,0.18484988,16936.0,16935.0,1.28359479]
[1673072357903,0.63840598,16936.0,16935.0,1.28359479]
[1673072358679,0.18484988,16936.0,16935.0,1.28359479]
[1673072360232,0.63840598,16936.0,16935.0,1.28359479]
[1673072365082,0.63840598,16936.0,16935.0,0.69310179]
[1673072366490,0.18484988,16936.0,16935.0,0.69310179]
[1673072366738,0.62709467,16936.0,16935.0,0.69310179]
[1673072367307,0.18484988,16936.0,16935.0,0.69310179]
[1673072367824,0.18484988,16936.0,16935.0,1.28359479]
[1673072368354,0.6270919,16936.0,16935.0,1.28359479]
[1673072369143,0.18484988,16936.0,16935.0,1.28359479]
[1673072369392,0.62709034,16936.0,16935.0,1.28359479]
[1673072370724,0.62709526,16936.0,16935.0,1.28359479]
[1673072372582,0.18484988,16936.0,16935.0,1.28359479]
[1673072372842,0.18484988,16936.0,16935.0,1.28349042]
[1673072373101,0.63840598,16936.0,16935.0,1.28349042]
[1673072373867,0.18484988,16936.0,16935.0,1.28349042]
[1673072375242,0.23078725,16936.0,16935.0,1.28349042]
[1673072375413,0.67302969,16936.0,16935.0,1.28349042]
[1673072375685,0.23078725,16936.0,16935.0,1.28349042]
[1673072375939,0.67303489,16936.0,16935.0,1.28349042]
[1673072377688,1.02682986,16936.0,16935.0,1.28349042]
[1673072378697,0.67303489,16936.0,16935.0,1.28349042]
[1673072378940,1.02683715,16936.0,16935.0,1.28349042]
[1673072379185,0.67303489,16936.0,16935.0,1.28349042]
[1673072379700,1.02683279,16936.0,16935.0,1.28349042]
[1673072386577,1.02683279,16936.0,16935.0,1.27849042]
[1673072388321,0.85798291,16936.0,16935.0,1.27849042]
[1673072388565,0.85798291,16936.0,16935.0,1.88474942]
[1673072388819,0.85798291,16936.0,16935.0,2.47524242]
[1673072389624,1.12329103,16936.0,16935.0,2.47524242]
[1673072390336,0.85798291,16936.0,16935.0,2.47524242]
[1673072390594,0.68104734,16936.0,16935.0,2.47524242]
[1673072390845,1.12329498,16936.0,16935.0,2.47524242]
[1673072391096,0.85798291,16936.0,16935.0,2.47524242]
[1673072391592,1.12329424,16936.0,16935.0,2.47524242]
[1673072391843,1.12328196,16936.0,16935.0,2.47524242]
[1673072392098,1.12328186,16936.0,16935.0,2.47524242]
[1673072392341,1.12328106,16936.0,16935.0,2.47524242]
[1673072392595,0.68103342,16936.0,16935.0,2.47524242]
[1673072396344,1.12328106,16936.0,16935.0,2.47524242]
[1673072396588,0.68103342,16936.0,16935.0,2.47524242]
[1673072397107,1.12328106,16936.0,16935.0,2.47524242]
[1673072397577,0.68103342,16936.0,16935.0,2.47524242]
[1673072398032,1.12328106,16936.0,16935.0,2.47524242]
[1673072398294,0.68103342,16936.0,16935.0,2.47524242]
[1673072398550,0.68103342,16936.0,16935.0,1.86898342]
[1673072401711,1.02725837,16936.0,16935.0,1.86898342]
[1673072402007,1.02725837,16936.0,16935.0,1.27849042]
[1673072403568,1.12327222,16936.0,16935.0,1.27849042]
[1673072404079,0.68102458,16936.0,16935.0,1.27849042]
[1673072404349,0.85798291,16936.0,16935.0,1.27849042]
[1673072404882,0.85798291,16936.0,16935.0,1.88474942]
[1673072405158,1.02455806,16936.0,16935.0,1.88474942]
[1673072405379,1.02455806,16936.0,16935.0,1.27849042]
[1673072406352,1.02455806,16936.0,16935.0,1.45099042]
[1673072407097,1.02455806,16936.0,16935.0,2.05724942]
[1673072413113,1.02455806,16936.0,16935.0,2.64774242]
[1673072413381,0.85798291,16936.0,16935.0,2.64774242]
[1673072414143,0.68112882,16936.0,16935.0,2.64774242]
[1673072418358,0.85806857,16936.0,16935.0,2.64774242]
[1673072418611,0.68112882,16936.0,16935.0,2.64774242]
[1673072419106,0.85805549,16936.0,16935.0,2.64774242]
[1673072420094,0.50425759,16936.0,16935.0,2.64774242]
[1673072421188,0.85805549,16936.0,16935.0,2.64774242]
[1673072421444,0.50425759,16936.0,16935.0,2.64774242]
[1673072425195,0.23886404,16936.0,16935.0,3.40129852]
[1673072425963,0.06193737,16936.0,16935.0,3.40129852]
[1673072426692,0.23886404,16936.0,16935.0,3.40129852]
[1673072426943,0.06193737,16936.0,16935.0,3.40129852]
[1673072430495,0.06193737,16936.0,16935.0,3.57841276]
[1673072431263,0.06193737,16936.0,16935.0,3.40129852]
[1673072432246,0.06193737,16936.0,16935.0,4.48713144]
[1673072432752,0.06193737,16936.0,16935.0,3.51822345]
[1673072433786,0.06193737,16936.0,16935.0,3.78390142]
[1673072435425,0.06193737,16936.0,16935.0,3.51822345]
[1673072436535,0.06193737,16936.0,16935.0,2.9184162]
[1673072437321,0.06193737,16936.0,16935.0,3.43593675]
[1673072437586,0.06193737,16936.0,16935.0,2.9184162]
[1673072438074,0.06193737,16936.0,16935.0,3.5492348]
[1673072440461,0.06193737,16936.0,16935.0,2.9184162]
[1673072440740,0.06193737,16936.0,16935.0,3.4767337]
[1673072441536,0.06193737,16936.0,16935.0,2.9184162]
[1673072441789,0.06182148,16936.0,16935.0,3.68409417]
[1673072442045,0.06182148,16936.0,16935.0,4.38528642]
[1673072442840,0.06182148,16936.0,16935.0,4.95670852]
[1673072443097,0.06182148,16936.0,16935.0,4.25551627]
[1673072443860,0.06182148,16936.0,16935.0,3.9898383]
[1673072444365,0.06182148,16936.0,16935.0,4.25551627]
[1673072445350,0.06182148,16936.0,16935.0,3.9898383]
[1673072446139,0.06182148,16936.0,16935.0,3.68409417]
[1673072446382,0.06182148,16936.0,16935.0,3.07783517]
[1673072446621,0.06182148,16936.0,16935.0,3.07888426]
[1673072446870,0.06182148,16936.0,16935.0,3.77790743]
[1673072447122,0.06182148,16936.0,16935.0,4.38416643]
[1673072447370,0.06182148,16936.0,16935.0,4.67940643]
[1673072447612,0.06182148,16936.0,16935.0,4.58130218]
[1673072447861,0.06182148,16936.0,16935.0,3.98038326]
[1673072448349,0.06182148,16936.0,16935.0,4.5159491]
[1673072448606,0.06182148,16936.0,16935.0,3.68514326]
[1673072448849,0.06182148,16936.0,16935.0,4.38270511]
[1673072449350,0.06182148,16936.0,16935.0,4.89549341]
[1673072449603,0.06182148,16936.0,16935.0,4.38270511]
[1673072452590,0.06182148,16936.0,16935.0,4.67794511]
[1673072454352,0.06182148,16936.0,16935.0,4.38270511]
[1673072459058,0.06182148,16936.0,16935.0,4.73691667]
[1673072459283,0.06182148,16936.0,16935.0,4.55980243]
[1673072461414,0.06182148,16936.0,16935.0,4.55938909]